bitfinex/quotes_ETHUSD_20250725
["timestamp","ask_amount","ask_price","bid_price","bid_amount"]
[1753446473180,0.91250001,3719.8,3719.7,7.13968472]
[1753446473578,0.91250001,3719.8,3719.7,13.01188425]
[1753446473579,1e-08,3719.8,3719.7,13.01188425]
[1753446474380,1e-08,3719.8,3719.7,12.55558425]
[1753446475491,1e-08,3719.8,3719.7,12.55547044]
[1753446475778,1e-08,3719.8,3719.7,12.68987044]
[1753446476690,1.68880001,3719.8,3719.7,4.58458207]
[1753446477187,1.68880001,3719.8,3719.7,7.27297091]
[1753446477484,1.68880001,3719.8,3719.7,4.58458207]
[1753446479974,1.68880001,3719.8,3719.7,0.38558207]
[1753446480159,1.68880001,3719.8,3719.7,4.58358207]
[1753446481360,1.68880001,3719.8,3719.7,4.58373497]
[1753446481655,4.57159658,3719.8,3719.7,0.25133497]
[1753446481867,4.59842222,3719.8,3719.7,4.198]
[1753446482155,4.59842222,3719.8,3719.1,0.1344]
[1753446482156,2.68853405,3719.5,3719.1,0.1344]
[1753446482351,3.49030729,3719.4,3719.2,4.198]
[1753446482556,0.9125,3719.3,3719.2,4.198]
[1753446484570,1e-08,3719.8,3719.2,10.88107743]
[1753446484769,1e-08,3719.8,3719.7,6.24983743]
[1753446484968,1e-08,3719.8,3719.7,10.58123743]
[1753446485402,0.91250001,3719.8,3719.7,10.58123743]
[1753446485570,0.91250001,3719.8,3719.7,13.26962627]
[1753446486193,1e-08,3719.8,3719.7,13.26962627]
[1753446487613,1e-08,3719.8,3719.7,0.1344]
[1753446487910,1e-08,3719.8,3719.7,7.01978884]
[1753446488376,0.45850001,3719.8,3719.7,7.01978884]
[1753446488581,0.90570001,3719.8,3719.7,7.01978884]
[1753446489289,0.44720001,3719.8,3719.7,7.01978884]
[1753446489807,1e-08,3719.8,3719.7,7.01978884]
[1753446490106,1e-08,3719.8,3719.7,14.72765663]
[1753446490681,1e-08,3719.8,3719.7,14.24055663]
[1753446490863,1e-08,3719.8,3719.7,14.72765663]
[1753446492693,1e-08,3719.8,3719.7,14.24055663]
[1753446492875,1e-08,3719.8,3719.7,15.92985663]
[1753446493396,1e-08,3719.8,3719.7,15.51015663]
[1753446495265,1e-08,3719.8,3719.7,15.50815663]
[1753446496763,1e-08,3719.8,3719.7,11.31315663]
[1753446496982,1e-08,3719.8,3719.7,15.50815663]
[1753446502513,1e-08,3719.8,3719.7,15.02105663]
[1753446504133,1e-08,3719.8,3719.7,15.01905663]
[1753446511349,1e-08,3719.8,3719.7,15.50615663]
[1753446514662,1e-08,3719.8,3719.7,18.50615663]
[1753446517469,1e-08,3719.8,3719.7,18.47625663]
[1753446517669,1e-08,3719.8,3719.7,6.7937192]
[1753446517858,0.90030001,3719.8,3719.7,7.01178884]
[1753446518073,0.90030001,3719.8,3719.7,13.26162627]
[1753446518375,1e-08,3719.8,3719.7,14.02932627]
[1753446518745,0.90030001,3719.8,3719.7,7.01178884]
[1753446519076,0.90030001,3719.8,3719.7,9.25229851]
[1753446519972,0.90030001,3719.8,3719.7,9.25129851]
[1753446520639,1e-08,3719.8,3719.7,9.25129851]
[1753446520842,0.90030001,3719.8,3719.7,9.25129851]
[1753446522164,1e-08,3719.8,3719.7,9.25129851]
[1753446522874,1e-08,3719.8,3719.7,10.00459851]
[1753446523948,1e-08,3719.8,3719.7,10.2564241]
[1753446524442,0.90030001,3719.8,3719.7,9.5031241]
[1753446524680,0.90030001,3719.8,3719.7,7.26262157]
[1753446528411,0.90030001,3719.8,3719.7,3.07462157]
[1753446528558,0.90030001,3719.8,3719.7,7.26162157]
[1753446529599,0.90030001,3719.8,3719.7,7.26062157]
[1753446533723,0.44210001,3719.8,3719.7,7.26062157]
[1753446533890,1e-08,3719.8,3719.7,9.57173452]
[1753446534593,0.90030001,3719.8,3719.7,9.57173452]
[1753446534794,0.90030001,3719.8,3719.7,7.00878884]
[1753446535126,0.90030001,3719.8,3719.7,7.26070985]
[1753446535823,0.90030001,3719.8,3719.7,7.26071549]
[1753446537019,1e-08,3719.8,3719.7,7.26071549]
[1753446538932,1e-08,3719.8,3719.7,8.48751549]
[1753446539102,1e-08,3719.8,3719.7,10.91756783]
[1753446539306,1e-08,3719.8,3719.7,13.46036783]
[1753446539639,1e-08,3719.8,3719.7,14.33726783]
[1753446539826,1e-08,3719.8,3719.7,13.91756783]
[1753446542145,1e-08,3719.8,3719.7,13.46036783]
[1753446543133,0.90030001,3719.8,3719.7,12.69076783]
[1753446543346,0.90030001,3719.8,3719.7,8.50476783]
[1753446543650,0.90030001,3719.8,3719.7,10.25671549]
[1753446544940,1.65150001,3719.8,3719.7,4.56832665]
[1753446546025,1.65150001,3719.8,3719.7,4.5683584]
[1753446547639,1.65150001,3719.8,3719.7,0.3863584]
[1753446547841,4.35101658,3719.8,3719.7,4.4329584]
[1753446548211,4.48541658,3719.8,3719.7,4.4329584]
[1753446552821,4.48541658,3719.8,3719.7,0.2519584]
[1753446552822,8.03541658,3719.8,3719.7,0.2519584]
[1753446553023,7.48541658,3719.8,3719.7,0.2519584]
[1753446554058,4.48541658,3719.8,3719.7,0.2519584]
[1753446554244,5.06224222,3719.8,3719.7,0.2519584]
[1753446554549,15.10224222,3719.8,3719.7,0.2519584]
[1753446554758,15.07541658,3719.8,3719.7,0.2519584]
[1753446557261,19.25441658,3719.8,3719.7,1e-08]
[1753446558027,19.25441658,3719.8,3719.6,0.001]
[1753446558028,6.23838884,3719.7,3719.6,0.001]
[1753446558276,7.94788884,3719.7,3719.6,0.001]
[1753446558680,2.68896716,3718.9,3718.8,4.18]
[1753446558878,3.6378928,3718.9,3718.8,4.18]
[1753446559056,3.7722928,3718.9,3718.8,4.18]
[1753446559731,1.08332564,3718.9,3718.8,4.18]
[1753446559956,0.1344,3718.9,3718.8,4.18]
[1753446560338,2.82336716,3718.9,3718.8,4.18]
[1753446560667,3.74546716,3718.9,3718.8,4.18]
[1753446561029,1.0565,3718.9,3718.8,4.18]
[1753446561267,0.1344,3718.9,3718.8,4.18]
[1753446561824,2.82336716,3718.9,3718.8,4.18]
[1753446562044,2.82336716,3718.9,3718.8,0.001]
[1753446562231,3.7722928,3718.9,3718.8,0.001]
[1753446564059,1.0565,3718.9,3718.8,0.001]
[1753446564559,2.82336716,3718.9,3718.8,0.001]
[1753446565066,3.74546716,3718.9,3718.8,0.001]
[1753446565385,1.0565,3718.9,3718.8,0.001]
[1753446565788,3.74546716,3718.9,3718.8,0.001]
[1753446566177,3.7722928,3718.9,3718.8,0.001]
[1753446568064,3.74546716,3718.9,3718.8,0.001]
[1753446569390,3.74546716,3718.9,3718.8,0.25245207]
[1753446570490,4.52676716,3718.9,3718.8,0.25245207]
[1753446570859,12.2805928,3718.9,3718.8,0.25245207]
[1753446571059,12.2805928,3718.9,3718.4,0.001]
[1753446571060,5.68925642,3718.5,3718.4,0.001]
[1753446571260,6.2394734,3718.2,3718.1,0.70829859]
[1753446571460,11.3565734,3718.2,3718.1,0.23329859]
[1753446571659,6.23969041,3717.9,3717.3,0.001]
[1753446571899,11.35679041,3717.9,3717.3,0.001]
[1753446572065,12.27889041,3717.9,3717.3,0.001]
[1753446572915,12.41255085,3717.9,3717.3,0.001]
[1753446574202,7.12109041,3717.9,3717.3,0.001]
[1753446574379,11.29809041,3717.9,3717.3,0.001]
[1753446574581,0.9401,3717.9,3717.3,0.001]
[1753446574781,0.1344,3717.9,3717.8,0.9069]
[1753446574981,2.82409041,3717.9,3717.8,0.001]
[1753446575201,7.57201605,3717.9,3717.8,0.001]
[1753446575402,7.54519041,3717.9,3717.8,0.001]
[1753446576208,11.29139041,3717.9,3717.8,0.001]
[1753446576704,10.80009041,3717.9,3717.8,0.001]
[1753446577276,11.27399041,3717.9,3717.8,0.001]
[1753446577807,2.82409041,3717.9,3717.8,0.001]
[1753446578307,0.1344,3717.9,3717.8,0.9514]
[1753446580100,0.779,3718.2,3717.8,0.9514]
[1753446580295,0.1344,3718.0,3717.9,0.9504]
[1753446580699,0.1344,3718.0,3717.9,0.4539]
[1753446581009,0.1344,3718.0,3717.8,0.001]
[1753446582712,0.02682564,3717.9,3717.8,0.001]
[1753446583335,1.31942564,3717.9,3717.8,0.001]
[1753446583528,0.8187,3717.9,3717.8,0.001]
[1753446583812,0.1344,3718.0,3717.8,0.9514]
[1753446584014,0.1344,3718.0,3717.8,0.001]
[1753446584678,0.50072564,3717.9,3717.8,0.001]
[1753446586815,0.1344,3718.0,3717.8,0.001]
[1753446586997,0.1344,3718.0,3717.8,0.9514]
[1753446587319,0.1344,3718.0,3717.8,0.001]
[1753446587737,0.6083,3718.0,3717.8,0.001]
[1753446590543,0.1344,3718.0,3717.8,0.001]
[1753446591517,0.6083,3718.0,3717.8,0.001]
[1753446592355,0.4739,3717.9,3717.8,0.001]
[1753446593344,0.1344,3718.0,3717.8,0.001]
[1753446593544,0.6083,3718.0,3717.8,0.001]
[1753446594656,0.1344,3718.0,3717.8,0.001]
[1753446594847,0.02682564,3717.9,3717.8,0.001]
[1753446595633,0.1344,3718.0,3717.8,0.001]
[1753446596343,0.6083,3718.0,3717.8,0.001]
[1753446597262,0.1344,3718.0,3717.9,0.4539]
[1753446597570,0.1344,3718.0,3717.9,0.9504]
[1753446598835,0.1344,3718.0,3717.9,0.4539]
[1753446599776,0.1344,3718.0,3717.8,0.001]
[1753446600569,0.1344,3718.0,3717.8,0.4549]
[1753446601131,0.93572564,3717.9,3717.8,0.001]
[1753446601335,1.73172564,3717.9,3717.8,0.001]
[1753446601584,0.1344,3718.0,3717.8,0.001]
[1753446601935,0.1344,3718.0,3717.8,0.9514]
[1753446602542,0.1344,3718.0,3717.8,0.001]
[1753446602749,0.02682564,3717.9,3717.8,0.001]
[1753446603160,0.50072564,3717.9,3717.8,0.001]
[1753446603862,0.4739,3717.9,3717.8,0.001]
[1753446604189,1.76272564,3717.9,3717.8,0.001]
[1753446604390,1.9526382,3717.9,3717.8,0.001]
[1753446604981,0.2167382,3717.9,3717.8,0.001]
[1753446605310,0.1344,3718.0,3717.8,0.9514]
[1753446605506,0.002,3718.1,3717.9,0.9504]
[1753446605882,0.002,3718.1,3718.0,0.4539]
[1753446606119,0.002,3718.1,3718.0,0.9504]
[1753446606406,0.002,3718.1,3718.0,1.8993]
[1753446606575,0.002,3718.1,3718.0,3.13400343]
[1753446608010,0.002,3718.1,3718.0,3.16089961]
[1753446608409,0.002,3718.1,3718.0,3.13400343]
[1753446608712,0.002,3718.1,3718.0,3.16089961]
[1753446610106,0.002,3718.1,3718.0,6.16089961]
[1753446610275,0.002,3718.1,3718.0,6.13400343]
[1753446611125,0.002,3718.1,3718.0,6.68400343]
[1753446611419,0.002,3718.9,3718.8,7.03453743]
[1753446611625,0.002,3718.9,3718.8,11.90699117]
[1753446612014,0.002,3718.9,3718.8,12.93569117]
[1753446613225,0.002,3718.9,3718.8,15.93569117]
[1753446613422,0.002,3719.6,3719.5,7.01363743]
[1753446613638,0.002,3719.6,3719.5,11.18163743]
[1753446613788,0.002,3719.6,3719.5,13.32850117]
[1753446615493,0.002,3719.6,3719.5,16.32850117]
[1753446617122,0.002,3719.6,3719.5,16.32650117]
[1753446623103,0.002,3719.6,3719.5,16.32450117]
[1753446626619,1e-08,3719.8,3719.6,3.0]
[1753446626818,1e-08,3719.8,3719.7,9.698354]
[1753446627134,1e-08,3719.8,3719.7,10.56577012]
[1753446627521,1e-08,3719.8,3719.7,9.67147012]
[1753446627743,1e-08,3719.8,3719.7,10.56577012]
[1753446629848,1e-08,3719.8,3719.7,10.10817012]
[1753446630148,1e-08,3719.8,3719.7,9.67047012]
[1753446631229,1e-08,3719.8,3719.7,5.50847012]
[1753446631442,1e-08,3719.8,3719.7,9.67047012]
[1753446632658,1e-08,3719.8,3719.7,10.56477012]
[1753446633757,1e-08,3719.8,3719.7,10.10617012]
[1753446633939,1e-08,3719.8,3719.7,9.66947012]
[1753446635050,1e-08,3719.8,3719.7,10.10617012]
[1753446635416,1e-08,3719.8,3719.7,5.94517012]
[1753446635624,1e-08,3719.8,3719.7,10.10617012]
[1753446637653,1e-08,3719.8,3719.7,9.66947012]
[1753446639053,1e-08,3719.8,3719.7,10.13247012]
[1753446639261,0.002,3720.5,3719.9,0.8252]
[1753446639434,0.002,3720.5,3720.4,10.20943743]
[1753446639753,0.002,3720.5,3720.4,14.36843743]
[1753446640156,0.002,3720.9,3720.5,3.0]
[1753446640353,0.4896,3720.9,3720.8,6.24983743]
[1753446640599,0.002,3720.9,3720.8,10.54323743]
[1753446641157,0.4896,3720.9,3720.8,10.54323743]
[1753446641372,0.9607,3720.9,3720.8,10.54323743]
[1753446642260,0.002,3720.9,3720.8,13.97481439]
[1753446643919,0.9607,3720.9,3720.0,0.8027]
[1753446644196,0.9587,3720.8,3720.4,6.24983743]
[1753446644490,0.9587,3720.7,3720.4,6.24983743]
[1753446644691,1.7844,3720.6,3720.5,4.158]
[1753446645069,1.7844,3720.6,3720.5,4.157]
[1753446645875,0.9587,3720.6,3720.5,4.157]
[1753446646276,0.002,3720.9,3720.5,5.19768374]
[1753446646481,0.002,3720.9,3720.8,6.24983743]
[1753446646666,0.4896,3720.9,3720.8,10.40683743]
[1753446649104,0.4896,3720.9,3720.8,13.40683743]
[1753446649884,0.002,3720.9,3720.8,13.40683743]
[1753446650072,0.002,3720.9,3720.8,14.31940039]
[1753446651411,0.002,3720.9,3720.8,15.14890039]
[1753446652176,0.002,3720.9,3720.8,15.61190039]
[1753446653386,0.002,3720.9,3720.8,16.10220039]
[1753446653906,0.002,3720.9,3720.8,15.28330039]
[1753446654103,0.002,3720.9,3720.8,11.12630039]
[1753446654298,0.4896,3720.9,3720.8,8.20196296]
[1753446655098,0.4896,3720.9,3720.8,14.45180039]
[1753446655621,0.002,3720.9,3720.8,14.45180039]
[1753446657121,0.4896,3720.9,3720.8,14.45180039]
[1753446657323,0.002,3720.9,3720.8,3.1344]
[1753446657485,0.9607,3720.9,3720.8,7.2884]
[1753446657682,0.4896,3720.9,3720.8,7.2884]
[1753446657882,0.002,3720.9,3720.8,7.2884]
[1753446658624,0.002,3720.9,3720.8,8.2417]
[1753446658793,0.002,3720.9,3720.8,9.76871374]
[1753446659488,0.002,3720.9,3720.8,8.81541374]
[1753446660317,0.4896,3720.9,3720.8,8.81441374]
[1753446660517,0.9607,3720.9,3720.8,7.2874]
[1753446661188,0.4896,3720.9,3720.8,7.2874]
[1753446661388,0.9607,3720.9,3720.8,7.2874]
[1753446662582,0.002,3720.9,3720.8,7.2874]
[1753446662785,0.002,3720.9,3720.8,8.0907]
[1753446663019,0.4896,3720.9,3720.8,9.46198374]
[1753446663212,0.9607,3720.9,3720.8,4.2874]
[1753446663415,0.4896,3720.9,3720.8,4.2874]
[1753446663617,0.002,3720.9,3720.8,4.2874]
[1753446664128,0.4896,3720.9,3720.8,4.2874]
[1753446665011,0.002,3720.9,3720.8,4.2874]
[1753446665801,0.002,3721.3,3720.8,9.01329968]
[1753446666003,0.002,3721.3,3721.2,6.24983743]
[1753446666215,0.002,3721.3,3721.2,13.53623743]
[1753446667842,0.9168,3721.3,3721.2,3.1344]
[1753446668001,1.6924,3721.3,3721.2,4.2864]
[1753446668339,1.6924,3721.3,3720.5,6.453]
[1753446668340,0.7756,3721.0,3720.7,0.1344]
[1753446668535,0.7756,3721.0,3720.8,4.152]
[1753446668700,0.9148,3720.9,3720.8,4.152]
[1753446670329,0.4805,3720.9,3720.8,4.152]
[1753446670843,0.9148,3720.9,3720.8,4.152]
[1753446671024,0.4805,3720.9,3720.8,6.83959406]
[1753446671199,0.9148,3721.2,3721.1,2.68737738]
[1753446671401,0.002,3721.3,3721.2,2.68730517]
[1753446671841,0.4825,3721.3,3721.2,2.68730517]
[1753446672211,0.002,3721.3,3721.2,2.68730517]
[1753446672426,0.002,3721.3,3721.2,4.63837196]
[1753446672602,0.002,3721.3,3721.2,4.66524501]
[1753446672921,0.002,3721.3,3721.2,5.06817196]
[1753446673837,0.002,3721.3,3721.2,4.63837196]
[1753446674138,0.002,3721.3,3721.2,2.68730517]
[1753446674439,1e-08,3721.4,3721.3,5.68723295]
[1753446674745,0.7562,3722.4,3721.3,5.68723295]
[1753446674746,0.15083223,3723.1,3723.0,2.6860059]
[1753446674906,0.15083223,3723.6,3723.1,2.68586415]
[1753446675110,0.7542,3724.0,3723.6,2.68551183]
[1753446675112,0.15083223,3723.8,3723.6,2.68551183]
[1753446675424,0.7542,3724.0,3722.8,2.68608808]
[1753446675425,0.7542,3724.0,3723.1,6.24983743]
[1753446675426,0.1344,3723.6,3723.1,6.24983743]
[1753446675624,0.4343,3723.7,3723.5,2.68559596]
[1753446675830,0.4343,3723.7,3723.6,4.15]
[1753446676606,0.9148,3723.7,3723.6,4.15]
[1753446677212,1.4648,3723.7,3723.6,4.15]
[1753446677646,0.55,3723.6,3722.7,2.68616223]
[1753446677941,0.55,3723.6,3722.1,3.0]
[1753446677942,0.7961,3723.3,3722.8,0.26861622]
[1753446678151,1.49162564,3723.2,3722.8,0.1344]
[1753446678354,0.9148,3723.1,3722.9,4.149]
[1753446678650,0.9148,3723.0,3722.9,6.83506129]
[1753446678849,0.9148,3723.0,3722.9,4.149]
[1753446679531,0.55,3722.9,3722.3,2.68646287]
[1753446679729,0.55,3722.9,3721.6,3.60030529]
[1753446679730,0.7634,3722.7,3722.4,4.2834]
[1753446680029,0.7634,3722.7,3721.6,0.9133]
[1753446680030,1.49162564,3722.6,3722.5,4.148]
[1753446680234,1.4648,3722.6,3722.3,0.1344]
[1753446680435,1.4648,3722.6,3721.5,0.7556]
[1753446680436,0.55,3722.4,3721.8,2.68681676]
[1753446680756,0.02682564,3722.3,3721.9,4.148]
[1753446680946,0.55,3722.2,3721.9,4.148]
[1753446681257,0.55,3722.0,3721.9,4.148]
[1753446681555,1.4648,3722.0,3721.9,4.148]
[1753446681754,1.4648,3722.0,3721.8,0.1344]
[1753446681942,1.4648,3722.0,3721.6,0.1344]
[1753446681943,0.55,3721.8,3721.6,0.1344]
[1753446682143,0.55,3721.8,3721.7,4.148]
[1753446682551,1.4648,3721.8,3721.7,4.148]
[1753446684756,1.4648,3721.8,3721.3,6.452]
[1753446684959,0.55,3721.6,3721.4,4.148]
[1753446685158,0.9148,3721.5,3721.4,4.148]
[1753446685550,0.9148,3721.5,3721.3,6.5864]
[1753446685551,1.3741,3721.4,3721.3,6.5864]
[1753446685779,5.33935131,3721.4,3721.3,4.147]
[1753446685960,3.05287621,3721.4,3721.3,4.147]
[1753446686279,5.11046074,3721.4,3721.3,4.147]
[1753446686482,5.51115109,3721.4,3721.3,4.147]
[1753446687454,5.53797673,3721.4,3721.3,4.147]
[1753446687854,3.0,3721.3,3720.6,0.1354]
[1753446688060,4.17636629,3720.7,3720.6,0.001]
[1753446688253,4.20319193,3720.7,3720.6,4.148]
[1753446688475,5.11799193,3720.7,3720.6,4.148]
[1753446688687,2.4035,3720.7,3720.6,4.148]
[1753446689294,5.09116629,3720.7,3720.6,4.148]
[1753446689455,2.4035,3720.7,3720.6,4.148]
[1753446689656,1.3543,3720.7,3720.6,4.148]
[1753446689859,1.8348,3720.7,3720.6,4.148]
[1753446690190,2.2691,3720.7,3720.6,4.148]
[1753446690361,4.95676629,3720.7,3720.6,4.148]
[1753446690557,5.11799193,3720.7,3720.6,4.148]
[1753446691075,5.11799193,3720.7,3720.6,0.001]
[1753446691389,5.11799193,3720.7,3720.6,4.148]
[1753446693407,5.3664565,3720.7,3720.6,4.148]
[1753446694060,5.33963086,3720.7,3720.6,4.148]
[1753446694260,5.08926629,3720.7,3720.6,4.148]
[1753446695705,4.17446629,3720.7,3720.6,4.148]
[1753446695904,1.9673,3720.7,3720.6,4.148]
[1753446696206,5.13079193,3720.7,3720.6,4.148]
[1753446696515,5.10396629,3720.7,3720.6,4.148]
[1753446696672,5.35424115,3720.7,3720.6,4.148]
[1753446697205,5.10396629,3720.7,3720.6,4.148]
[1753446698771,2.4163,3720.7,3720.6,4.148]
[1753446699116,0.6844,3720.7,3720.6,4.148]
[1753446699296,0.73293138,3721.1,3720.6,4.148]
[1753446699297,0.4827,3721.5,3720.6,5.54658]
[1753446699609,0.55,3721.0,3720.6,4.7218]
[1753446699766,0.55,3721.0,3720.6,5.2166]
[1753446700169,0.55,3721.0,3720.6,7.46493585]
[1753446700398,0.55,3721.0,3720.7,0.4394]
[1753446701585,0.55,3721.0,3720.7,3.1270498]
[1753446702375,0.55,3721.0,3720.7,0.4394]
[1753446702576,0.55,3721.0,3720.8,2.6875917]
[1753446702776,0.55,3721.0,3720.7,0.9342]
[1753446702991,0.55,3721.0,3720.8,0.9342]
[1753446703185,0.55,3721.0,3720.9,2.68752183]
[1753446703508,0.55,3721.0,3720.9,3.62172183]
[1753446703700,0.55,3721.4,3720.9,3.62172183]
[1753446703874,0.55,3721.1,3721.0,4.146]
[1753446704075,0.55,3721.1,3721.0,7.76764961]
[1753446704274,0.55,3721.1,3721.0,5.0802]
[1753446704471,0.55,3721.1,3721.0,4.146]
[1753446705910,0.55,3721.1,3720.7,0.9342]
[1753446706094,0.55,3721.1,3720.8,0.25085605]
[1753446706297,0.55,3721.1,3720.9,4.39685605]
[1753446706496,0.55,3721.1,3721.0,0.25085605]
[1753446706903,0.55,3721.1,3721.0,0.25099222]
[1753446708087,0.55,3721.1,3721.0,0.25199222]
[1753446708870,1.3123,3721.1,3720.6,0.1354]
[1753446709151,1.3123,3721.1,3719.0,9.34389281]
[1753446709152,0.4827,3722.8,3719.0,0.001]
[1753446709153,2.68867797,3719.3,3719.0,0.001]
[1753446709498,6.62037797,3719.3,3719.2,4.363]
[1753446709704,7.95737797,3719.3,3719.2,0.001]
[1753446709914,7.95737797,3719.3,3719.2,4.363]
[1753446710208,7.95737797,3719.3,3719.2,4.362]
[1753446710515,7.95737797,3719.3,3719.2,4.361]
[1753446710740,7.95737797,3719.3,3719.2,0.001]
[1753446711068,7.98347797,3719.3,3719.2,4.36]
[1753446711930,5.2948,3719.3,3719.2,4.36]
[1753446712131,7.98347797,3719.3,3719.2,4.36]
[1753446713039,4.3631,3719.3,3719.2,4.36]
[1753446713257,3.8131,3719.3,3719.2,4.36]
[1753446713453,0.7923,3719.8,3719.2,4.8548]
[1753446713655,0.7923,3719.8,3719.2,5.2942]
[1753446713836,3.7923,3719.8,3719.2,5.2942]
[1753446714258,0.55,3719.7,3719.2,5.2942]
[1753446714454,0.55,3719.7,3719.2,4.8548]
[1753446714659,3.2384339,3719.7,3719.2,4.8548]
[1753446715034,0.55,3719.7,3719.2,4.8548]
[1753446715361,0.55,3719.7,3718.3,2.68935183]
[1753446715362,0.55,3719.7,3717.3,0.001]
[1753446715363,3.2064875,3719.7,3717.3,0.001]
[1753446715571,3.2064875,3719.7,3715.7,1.615]
[1753446715572,3.2064875,3719.7,3715.7,0.001]
[1753446715573,9.14472238,3717.5,3715.7,0.001]
[1753446715789,2.4119058,3719.6,3715.7,0.001]
[1753446715790,3.24077601,3716.4,3715.8,2.74541727]
[1753446715987,6.24077601,3716.4,3715.7,0.001]
[1753446716692,2.6912105,3715.8,3715.7,0.001]
[1753446716875,3.2412105,3715.8,3715.7,0.001]
[1753446717063,4.1729105,3715.8,3715.7,0.001]
[1753446717264,2.95576148,3715.8,3715.7,0.001]
[1753446717473,4.0199105,3715.8,3715.7,0.001]
[1753446717666,0.55,3715.8,3715.7,0.001]
[1753446718459,0.55,3715.8,3715.7,1.42838]
[1753446718691,0.9317,3717.2,3715.7,1.42838]
[1753446718989,0.26934722,3718.3,3715.7,0.1354]
[1753446718990,0.6844,3716.2,3715.7,0.1354]
[1753446719164,0.55,3715.8,3715.7,0.001]
[1753446719357,3.2412105,3715.8,3715.7,0.001]
[1753446719558,0.55,3715.8,3715.7,0.001]
[1753446720267,0.55,3715.8,3715.7,0.4958]
[1753446720471,0.1344,3716.0,3715.7,0.4958]
[1753446720791,2.71797384,3715.9,3715.7,0.001]
[1753446720995,0.55,3715.8,3715.7,0.001]
[1753446721300,0.55,3716.8,3715.8,0.9342]
[1753446721481,2.69100396,3716.1,3715.8,0.9342]
[1753446721683,0.02682564,3716.0,3715.7,0.1354]
[1753446721886,0.02682564,3716.1,3715.7,0.6302]
[1753446722105,0.02682564,3716.1,3715.8,4.437]
[1753446722508,0.02682564,3716.1,3715.8,4.9318]
[1753446722723,0.02682564,3716.1,3715.8,4.434]
[1753446723010,0.55,3716.2,3715.8,4.434]
[1753446723011,3.24113808,3715.9,3715.8,4.434]
[1753446723575,0.55,3715.8,3715.7,4.433]
[1753446723992,0.55,3715.9,3715.7,4.433]
[1753446724195,0.22690669,3715.9,3715.8,0.25060498]
[1753446724471,0.1344,3716.0,3715.8,0.25060498]
[1753446724670,0.1344,3716.0,3715.7,4.433]
[1753446724671,1.2757,3716.9,3715.9,1.18480498]
[1753446724979,0.1344,3716.8,3716.1,0.7997]
[1753446725168,0.85572564,3717.4,3716.6,0.1344]
[1753446725169,0.8289,3717.4,3716.6,0.1344]
[1753446725370,5.8246836,3717.1,3716.7,4.67760498]
[1753446725597,3.1344,3717.1,3716.8,0.25060498]
[1753446725800,3.1344,3717.1,3716.9,0.25060498]
[1753446726102,0.8289,3717.4,3717.0,0.73680498]
[1753446726302,2.82458498,3717.3,3717.1,0.25060498]
[1753446726506,2.82458498,3717.3,3716.8,0.1344]
[1753446726507,2.69019692,3717.2,3716.8,0.1344]
[1753446726712,2.69019692,3717.2,3715.0,9.15172509]
[1753446726713,2.69171758,3715.1,3715.0,0.001]
[1753446726875,13.8432819,3715.1,3715.0,1e-08]
[1753446727080,14.7647819,3715.1,3715.0,1e-08]
[1753446728290,14.7647819,3715.1,3714.3,0.001]
[1753446728291,3.24222485,3714.4,3714.3,0.001]
[1753446728507,7.14842485,3714.4,3714.3,0.001]
[1753446728791,2.69273231,3713.7,3713.6,0.1344]
[1753446728991,5.69273231,3713.7,3713.6,0.1344]
[1753446729193,0.1344,3714.1,3713.6,5.0396]
[1753446729406,2.69265655,3713.9,3713.7,4.419]
[1753446729574,0.55,3714.3,3713.6,0.1344]
[1753446729770,5.69273231,3713.7,3713.6,0.1344]
[1753446730191,6.61423231,3713.7,3713.6,0.1344]
[1753446730509,2.69338504,3712.8,3712.7,0.6395]
[1753446730712,2.6930949,3713.2,3712.8,0.1344]
[1753446730915,0.82152564,3713.3,3709.8,0.13619221]
[1753446730916,0.7947,3712.8,3709.8,0.13619221]
[1753446731217,0.7947,3712.8,3709.0,0.4862]
[1753446731218,2.69541778,3710.0,3709.0,0.4862]
[1753446731414,2.69592625,3709.4,3709.0,0.4862]
[1753446731614,5.43432564,3709.9,3709.2,0.1344]
[1753446731803,3.0,3709.8,3708.4,0.4862]
[1753446732007,0.55,3709.5,3708.4,0.4862]
[1753446732193,0.1352,3709.1,3708.4,0.4862]
[1753446732512,0.1352,3708.9,3708.8,2.6962899]
[1753446732719,4.492,3709.6,3708.8,0.9452]
[1753446733019,0.48422564,3710.3,3708.8,0.9452]
[1753446733020,0.4574,3710.3,3708.8,0.5942]
[1753446733227,0.4574,3710.3,3707.8,4.492]
[1753446733228,1.12836181,3710.6,3709.4,0.1344]
[1753446733383,0.1344,3710.5,3709.5,0.9452]
[1753446733584,0.1344,3710.5,3710.4,2.69512721]
[1753446733808,1.12836181,3710.6,3710.5,2.69505457]
[1753446733997,1.12836181,3710.6,3710.5,3.66720511]
[1753446733998,1e-08,3710.6,3710.5,3.66720511]
[1753446734206,0.4574,3712.4,3710.6,3.0]
[1753446734396,0.49092564,3712.3,3710.8,2.69483669]
[1753446734602,1.03312465,3712.2,3712.1,2.69389294]
[1753446734783,1.03312465,3712.2,3712.1,3.18009294]
[1753446735317,1.03312465,3712.2,3712.1,3.63909294]
[1753446735619,5.4615,3713.4,3712.1,3.63909294]
[1753446735620,0.7573,3713.5,3712.1,0.9452]
[1753446735923,0.7573,3713.5,3712.2,0.4862]
[1753446736122,1.2147,3713.5,3712.7,2.69345631]
[1753446736288,1.2147,3713.5,3712.7,2.64345631]
[1753446736614,1.2147,3713.5,3711.8,0.4862]
[1753446736615,2.69302664,3713.3,3711.8,0.4862]